fUSD/lending_fUSD_20241128
["ID","MTS","AMOUNT","RATE_DAILY","PERIOD"]
[343626314,1732761046503,-584.30490584,9.994e-05,2]
[343626315,1732761046514,-500.0,9.994e-05,2]
[343626316,1732761046524,-500.0,9.994e-05,2]
[343626317,1732761046534,-500.0,9.994e-05,2]
[343626318,1732761046545,-500.0,9.994e-05,2]
[343626319,1732761046554,-500.0,9.994e-05,2]
[343626320,1732761046565,-500.0,9.994e-05,2]
[343626321,1732761046574,-500.0,9.994e-05,2]
[343626322,1732761046583,-505.53901472,9.994e-05,2]
[343626323,1732761046592,-517.09327624,9.994e-05,2]
[343626324,1732761046601,-500.0,9.994e-05,2]
[343626325,1732761046611,-500.0,9.994e-05,2]
[343626326,1732761046620,-505.5923573,9.994e-05,2]
[343626327,1732761046628,-536.0013136,9.994e-05,2]
[343626328,1732761046637,-531.61966376,9.994e-05,2]
[343626329,1732761046646,-500.0,9.994e-05,2]
[343626330,1732761046657,-500.0,9.994e-05,2]
[343626331,1732761046666,-500.0,9.994e-05,2]
[343626332,1732761046675,-512.55413669,9.994e-05,2]
[343626333,1732761046684,-500.0,9.994e-05,2]
[343626334,1732761046693,-507.39311848,9.994e-05,2]
[343626335,1732761046702,-501.55488272,9.994e-05,2]
[343626336,1732761046711,-500.0,9.994e-05,2]
[343626337,1732761046720,-507.95826932,9.994e-05,2]
[343626338,1732761046729,-500.0,9.994e-05,2]
[343626339,1732761046738,-507.43640894,9.994e-05,2]
[343626340,1732761046746,-500.0,9.994e-05,2]
[343626341,1732761046756,-500.0,9.994e-05,2]
[343626342,1732761046765,-500.0,9.994e-05,2]
[343626343,1732761046774,-500.0,9.994e-05,2]
[343626344,1732761046783,-500.0,9.994e-05,2]
[343626345,1732761046792,-525.62713175,9.994e-05,2]
[343626346,1732761046803,-500.0,9.994e-05,2]
[343626347,1732761046813,-500.0,9.994e-05,2]
[343626348,1732761046823,-500.0,9.994e-05,2]
[343626349,1732761046833,-507.86867612,9.994e-05,2]
[343626350,1732761046842,-500.0,9.994e-05,2]
[343626351,1732761046852,-500.0,9.994e-05,2]
[343626352,1732761046861,-500.0,9.994e-05,2]
[343626353,1732761046870,-509.41366846,9.994e-05,2]
[343626354,1732761046879,-509.07598222,9.994e-05,2]
[343626355,1732761046888,-500.0,9.994e-05,2]
[343626356,1732761046898,-500.0,9.994e-05,2]
[343626357,1732761046909,-500.0,9.994e-05,2]
[343626358,1732761046918,-500.0,9.994e-05,2]
[343626359,1732761046927,-500.0,9.994e-05,2]
[343626360,1732761046936,-730.24,9.994e-05,2]
[343626361,1732761046948,-256.73197912,9.994e-05,2]
[343626362,1732761046956,-500.0,9.994e-05,2]
[343626363,1732761046966,-504.70923803,9.994e-05,2]
[343626364,1732761046975,-501.60171106,9.994e-05,2]
[343626365,1732761046984,-516.87728956,9.994e-05,2]
[343626366,1732761046994,-500.0,9.994e-05,2]
[343626367,1732761047003,-500.0,9.994e-05,2]
[343626368,1732761047012,-568.73,9.994e-05,2]
[343626369,1732761047021,-500.0,9.994e-05,2]
[343626370,1732761047030,-500.0,9.994e-05,2]
[343626371,1732761047040,-500.0,9.994e-05,2]
[343626372,1732761047050,-500.0,9.994e-05,2]
[343626373,1732761047061,-500.0,9.994e-05,2]
[343626374,1732761047071,-500.0,9.994e-05,2]
[343626375,1732761047080,-500.0,9.994e-05,2]
[343626376,1732761047089,-500.0,9.994e-05,2]
[343626377,1732761047099,-307.45057592,9.994e-05,2]
[343626378,1732761047108,-500.0,9.994e-05,2]
[343626379,1732761047117,-500.0,9.994e-05,2]
[343626380,1732761047128,-368.396607,9.994e-05,2]
[343626381,1732761047138,-508.45344181,9.994e-05,2]
[343626382,1732761047148,-503.18197327,9.994e-05,2]
[343626383,1732761047161,-500.0,9.994e-05,2]
[343626384,1732761047170,-500.0,9.994e-05,2]
[343626385,1732761047180,-583.74547277,9.994e-05,2]
[343626386,1732761047189,-500.0,9.994e-05,2]
[343626387,1732761047199,-150.18947147,9.994e-05,2]
[343626388,1732761047209,-500.0,9.994e-05,2]
[343626389,1732761047221,-546.09516577,9.994e-05,2]
[343626390,1732761047231,-500.0,9.994e-05,2]
[343626391,1732761047241,-503.19,9.994e-05,2]
[343626392,1732761047253,-505.7058449,9.994e-05,2]
[343626393,1732761047262,-500.0,9.994e-05,2]
[343626394,1732761047272,-500.0,9.994e-05,2]
[343626395,1732761047282,-500.0,9.994e-05,2]
[343626396,1732761047292,-502.58809936,9.994e-05,2]
[343626397,1732761047302,-173.55111604,9.994e-05,2]
[343626398,1732761047312,-567.45678389,9.994e-05,2]
[343626399,1732761047321,-762.85,9.994e-05,2]
[343626400,1732761047331,-762.85,9.994e-05,2]
[343626401,1732761047342,-500.0,9.994e-05,2]
[343626402,1732761047352,-500.0,9.994e-05,2]
[343626403,1732761047362,-2817.45,9.994e-05,2]
[343626404,1732761047371,-503.78078825,9.994e-05,2]
[343626405,1732761047380,-500.0,9.994e-05,2]
[343626406,1732761047391,-500.0,9.994e-05,2]
[343626407,1732761047401,-500.0,9.994e-05,2]
[343626408,1732761047411,-506.44964435,9.994e-05,2]
[343626409,1732761047421,-500.0,9.994e-05,2]
[343626410,1732761047431,-500.0,9.994e-05,2]
[343626411,1732761047442,-500.0,9.994e-05,2]
[343626412,1732761047454,-500.0,9.994e-05,2]
[343626413,1732761047464,-500.0,9.994e-05,2]
[343626414,1732761047473,-500.0,9.994e-05,2]
[343626415,1732761047483,-500.0,9.994e-05,2]
[343626416,1732761047492,-3226.25,9.994e-05,2]
[343626417,1732761047501,-500.0,9.994e-05,2]
[343626418,1732761047510,-500.0,9.994e-05,2]
[343626419,1732761047519,-510.88267139,9.994e-05,2]
[343626420,1732761047530,-500.0,9.994e-05,2]
[343626421,1732761047539,-500.0,9.994e-05,2]
[343626422,1732761047548,-500.0,9.994e-05,2]
[343626423,1732761047557,-500.0,9.994e-05,2]
[343626424,1732761047567,-500.0,9.994e-05,2]
[343626425,1732761047576,-935.73,9.994e-05,2]
[343626426,1732761047585,-500.0,9.994e-05,2]
[343626427,1732761047594,-500.0,9.994e-05,2]
[343626428,1732761047603,-500.0,9.994e-05,2]
[343626429,1732761047613,-500.0,9.994e-05,2]
[343626430,1732761047622,-500.0,9.994e-05,2]
[343626431,1732761047632,-371.03,9.994e-05,2]
[343626432,1732761047641,-500.0,9.994e-05,2]
[343626433,1732761047650,-500.0,9.994e-05,2]
[343626434,1732761047663,-500.0,9.994e-05,2]
[343626435,1732761047672,-745.03,9.994e-05,2]
[343626436,1732761047681,-506.8134572,9.994e-05,2]
[343626437,1732761047690,-560.82937703,9.994e-05,2]
[343626438,1732761047700,-314.09688579,9.994e-05,2]
[343626439,1732761047709,-611.75353565,9.994e-05,2]
[343626440,1732761047718,-905.93,9.994e-05,2]
[343626441,1732761047727,-758.17,9.994e-05,2]
[343626442,1732761047736,-500.0,9.994e-05,2]
[343626443,1732761047745,-500.0,9.994e-05,2]
[343626444,1732761047754,-500.0,9.994e-05,2]
[343626445,1732761047763,-500.0,9.994e-05,2]
[343626446,1732761047773,-508.04632967,9.994e-05,2]
[343626447,1732761047782,-500.0,9.994e-05,2]
[343626448,1732761047792,-500.0,9.994e-05,2]
[343626449,1732761047801,-1252.6,9.994e-05,2]
[343626450,1732761047811,-506.00543828,9.994e-05,2]
[343626451,1732761047820,-500.0,9.994e-05,2]
[343626452,1732761047829,-500.0,9.994e-05,2]
[343626453,1732761047838,-500.0,9.994e-05,2]
[343626454,1732761047847,-500.0,9.994e-05,2]
[343626455,1732761047856,-500.0,9.994e-05,2]
[343626456,1732761047865,-500.0,9.994e-05,2]
[343626457,1732761047874,-500.0,9.994e-05,2]
[343626458,1732761047883,-500.0,9.994e-05,2]
[343626459,1732761047892,-500.0,9.994e-05,2]
[343626460,1732761047901,-500.0,9.994e-05,2]
[343626461,1732761047916,-518.31252591,9.994e-05,2]
[343626462,1732761047925,-223.00691485,9.994e-05,2]
[343626463,1732761047934,-500.0,9.994e-05,2]
[343626464,1732761047943,-500.0,9.994e-05,2]
[343626465,1732761047953,-500.0,9.994e-05,2]
[343626466,1732761047962,-325.95863902,9.994e-05,2]
[343626467,1732761047971,-1558.86,9.994e-05,2]
[343626468,1732761047981,-506.58583471,9.994e-05,2]
[343626469,1732761047990,-500.0,9.994e-05,2]
[343626470,1732761047999,-500.0,9.994e-05,2]
[343626471,1732761048009,-500.0,9.994e-05,2]
[343626472,1732761048018,-500.0,9.994e-05,2]
[343626473,1732761048027,-500.0,9.994e-05,2]
[343626474,1732761048037,-500.0,9.994e-05,2]
[343626475,1732761048046,-507.74311942,9.994e-05,2]
[343626476,1732761048055,-500.0,9.994e-05,2]
[343626477,1732761048065,-505.034713,9.994e-05,2]
[343626478,1732761048074,-500.0,9.994e-05,2]
[343626479,1732761048084,-585.16118526,9.994e-05,2]
[343626480,1732761048093,-512.56305504,9.994e-05,2]
[343626481,1732761048102,-500.0,9.994e-05,2]
[343626482,1732761048112,-410.58123284,9.994e-05,2]
[343626483,1732761048122,-500.0,9.994e-05,2]
[343626484,1732761048131,-500.0,9.994e-05,2]
[343626485,1732761048140,-500.0,9.994e-05,2]
[343626486,1732761048149,-500.0,9.994e-05,2]
[343626487,1732761048161,-624.80704419,9.994e-05,2]
[343626488,1732761048170,-500.84358163,9.994e-05,2]
[343626489,1732761048179,-500.0,9.994e-05,2]
[343626490,1732761048189,-500.0,9.994e-05,2]
[343626491,1732761048198,-500.0,9.994e-05,2]
[343626492,1732761048208,-500.0,9.994e-05,2]
[343626493,1732761048218,-500.0,9.994e-05,2]
[343626494,1732761048227,-500.0,9.994e-05,2]
[343626495,1732761048236,-500.0,9.994e-05,2]
[343626496,1732761048246,-500.0,9.994e-05,2]
[343626497,1732761048255,-500.0,9.994e-05,2]
[343626498,1732761048265,-500.0,9.994e-05,2]
[343626499,1732761048275,-505.79398055,9.994e-05,2]
[343626500,1732761048284,-500.0,9.994e-05,2]
[343626501,1732761048294,-1404.47,9.994e-05,2]
[343626502,1732761048303,-500.0,9.994e-05,2]
[343626503,1732761048312,-500.0,9.994e-05,2]
[343626504,1732761048322,-500.0,9.994e-05,2]
[343626505,1732761048331,-500.0,9.994e-05,2]
[343626506,1732761048341,-547.95716221,9.994e-05,2]
[343626507,1732761048351,-1206.62,9.994e-05,2]
[343626508,1732761048360,-500.0,9.994e-05,2]
[343626509,1732761048370,-500.0,9.994e-05,2]
[343626510,1732761048379,-518.62246181,9.994e-05,2]
[343626511,1732761048389,-500.0,9.994e-05,2]
[343626512,1732761048398,-520.35247266,9.994e-05,2]
[343626513,1732761048410,-531.2,9.994e-05,2]
[343626514,1732761048419,-500.0,9.994e-05,2]
[343626515,1732761048429,-500.0,9.994e-05,2]
[343626516,1732761048439,-500.0,9.994e-05,2]
[343626517,1732761048448,-500.0,9.994e-05,2]
[343626518,1732761048460,-500.0,9.994e-05,2]
[343626519,1732761048469,-528.14042643,9.994e-05,2]
[343626520,1732761048478,-500.0,9.994e-05,2]
[343626521,1732761048489,-500.0,9.994e-05,2]
[343626522,1732761048498,-500.0,9.994e-05,2]
[343626523,1732761048507,-510.76222057,9.994e-05,2]
[343626524,1732761048516,-500.0,9.994e-05,2]
[343626525,1732761048527,-500.0,9.994e-05,2]
[343626526,1732761048536,-500.0,9.994e-05,2]
[343626527,1732761048545,-500.0,9.994e-05,2]
[343626528,1732761048554,-503.49433518,9.994e-05,2]
[343626529,1732761048563,-664.41,9.994e-05,2]
[343626530,1732761048573,-500.0,9.994e-05,2]
[343626531,1732761048583,-500.0,9.994e-05,2]
[343626532,1732761048592,-500.0,9.994e-05,2]
[343626533,1732761048601,-500.0,9.994e-05,2]
[343626534,1732761048611,-805.12,9.994e-05,2]
[343626535,1732761048620,-1559.14,9.994e-05,2]
[343626536,1732761048629,-1559.14,9.994e-05,2]
[343626537,1732761048639,-500.0,9.994e-05,2]
[343626538,1732761048648,-514.92003292,9.994e-05,2]
[343626539,1732761048659,-511.75506143,9.994e-05,2]
[343626540,1732761048669,-500.0,9.994e-05,2]
[343626541,1732761048679,-500.0,9.994e-05,2]
[343626542,1732761048688,-527.1654913,9.994e-05,2]
[343626543,1732761048697,-500.0,9.994e-05,2]
[343626544,1732761048707,-527.02544964,9.994e-05,2]
[343626545,1732761048716,-500.0,9.994e-05,2]
[343626546,1732761048725,-500.0,9.994e-05,2]
[343626547,1732761048734,-3389.43,9.994e-05,2]
[343626548,1732761048743,-500.0,9.994e-05,2]
[343626549,1732761048753,-500.0,9.994e-05,2]
[343626550,1732761048762,-500.0,9.994e-05,2]
[343626551,1732761048772,-500.0,9.994e-05,2]
[343626552,1732761048781,-500.0,9.994e-05,2]
[343626553,1732761048791,-519.88848051,9.994e-05,2]
[343626554,1732761048800,-500.0,9.994e-05,2]
[343626555,1732761048809,-500.0,9.994e-05,2]
[343626556,1732761048824,-500.0,9.994e-05,2]
[343626557,1732761049029,-508.74145113,9.994e-05,2]
[343626558,1732761049039,-534.63,9.994e-05,2]
[343626559,1732761049048,-500.7471307,9.994e-05,2]
[343626560,1732761049058,-501.8927669,9.994e-05,2]
[343626561,1732761049067,-500.0,9.994e-05,2]
[343626562,1732761049077,-500.0,9.995e-05,2]
[343626563,1732761049086,-500.0,9.995e-05,2]
[343626564,1732761049095,-500.0,9.995e-05,2]
[343626565,1732761049105,-500.0,9.995e-05,2]
[343626566,1732761049114,-500.0,9.995e-05,2]
[343626567,1732761049123,-500.0,9.995e-05,2]
[343626568,1732761049132,-500.0,9.995e-05,2]
[343626569,1732761049142,-500.0,9.995e-05,2]
[343626570,1732761049151,-500.0,9.995e-05,2]
[343626571,1732761049162,-500.0,9.995e-05,2]
[343626572,1732761049172,-500.0,9.995e-05,2]
[343626573,1732761049181,-500.0,9.995e-05,2]
[343626574,1732761049191,-204.12,9.995e-05,2]
[343626575,1732761049200,-802.92,9.995e-05,2]
[343626576,1732761049210,-500.0,9.995e-05,2]
[343626577,1732761049219,-500.0,9.995e-05,2]
[343626578,1732761049228,-685.34,9.995e-05,2]
[343626579,1732761049238,-500.0,9.995e-05,2]
[343626580,1732761049247,-500.0,9.995e-05,2]
[343626581,1732761049256,-500.0,9.995e-05,2]
[343626582,1732761049265,-500.0,9.995e-05,2]
[343626583,1732761049275,-500.0,9.995e-05,2]
[343626584,1732761049284,-925.29,9.995e-05,2]
[343626585,1732761049294,-500.0,9.995e-05,2]
[343626586,1732761049303,-500.0,9.995e-05,2]
[343626587,1732761049312,-500.0,9.995e-05,2]
[343626588,1732761049321,-500.0,9.995e-05,2]
[343626589,1732761049330,-477.73401494,9.995e-05,2]
[343626590,1732761049339,-500.0,9.995e-05,2]
[343626591,1732761049348,-500.0,9.995e-05,2]
[343626592,1732761049357,-500.0,9.995e-05,2]
[343626593,1732761049367,-410.537,9.995e-05,2]
[343626594,1732761049375,-507.75879922,9.995e-05,2]
[343626595,1732761049384,-500.0,9.995e-05,2]
[343626596,1732761049393,-500.0,9.995e-05,2]
[343626597,1732761049405,-500.0,9.995e-05,2]
[343626598,1732761049414,-500.0,9.995e-05,2]
[343626599,1732761049423,-500.0,9.995e-05,2]
[343626600,1732761049433,-509.26325685,9.995e-05,2]
[343626601,1732761049445,-500.0,9.995e-05,2]
[343626602,1732761049455,-522.60818237,9.995e-05,2]
[343626603,1732761049464,-509.34722143,9.995e-05,2]
[343626604,1732761049473,-462.31822687,9.995e-05,2]
[343626605,1732761049482,-500.0,9.995e-05,2]
[343626606,1732761049492,-504.79621912,9.995e-05,2]
[343626607,1732761049501,-500.0,9.995e-05,2]
[343626608,1732761049510,-500.0,9.995e-05,2]
[343626609,1732761049521,-500.0,9.995e-05,2]
[343626610,1732761049530,-500.0,9.995e-05,2]
[343626611,1732761049539,-226.15362514,9.995e-05,2]
[343626612,1732761049548,-500.0,9.995e-05,2]
[343626613,1732761049557,-513.22748435,9.995e-05,2]
[343626614,1732761049567,-500.0,9.995e-05,2]
[343626615,1732761049576,-500.0,9.995e-05,2]
[343626616,1732761049585,-500.0,9.995e-05,2]
[343626617,1732761049594,-1189.33,9.995e-05,2]
[343626618,1732761049603,-543.49072637,9.995e-05,2]
[343626619,1732761049613,-503.4190529,9.995e-05,2]
[343626620,1732761049622,-528.21513772,9.995e-05,2]
[343626621,1732761049631,-500.0,9.995e-05,2]
[343626622,1732761049641,-500.0,9.995e-05,2]
[343626623,1732761049651,-500.0,9.995e-05,2]
[343626624,1732761049661,-828.73,9.995e-05,2]
[343626625,1732761049671,-500.0,9.995e-05,2]
[343626626,1732761049681,-500.0,9.995e-05,2]
[343626627,1732761049691,-500.0,9.995e-05,2]
[343626628,1732761049701,-500.0,9.995e-05,2]
[343626629,1732761049711,-500.0,9.995e-05,2]
[343626630,1732761049721,-583.58398506,9.995e-05,2]
[343626631,1732761049730,-500.0,9.995e-05,2]
[343626632,1732761049740,-500.0,9.995e-05,2]
[343626633,1732761049750,-500.0,9.995e-05,2]
[343626634,1732761049759,-500.0,9.995e-05,2]
[343626635,1732761049768,-541.16,9.995e-05,2]
[343626636,1732761049778,-541.16,9.995e-05,2]
[343626637,1732761049787,-500.0,9.995e-05,2]
[343626638,1732761049796,-500.0,9.995e-05,2]
[343626639,1732761049806,-1126.65,9.995e-05,2]
[343626640,1732761049816,-500.0,9.995e-05,2]
[343626641,1732761049825,-500.0,9.995e-05,2]
[343626642,1732761049835,-500.0,9.995e-05,2]
[343626643,1732761049844,-500.0,9.995e-05,2]
[343626644,1732761049853,-500.0,9.995e-05,2]
[343626645,1732761049863,-1564.6,9.995e-05,2]
[343626646,1732761049873,-1396.46,9.995e-05,2]
[343626647,1732761049882,-1029.32,9.995e-05,2]
[343626648,1732761049893,-500.0,9.995e-05,2]
[343626649,1732761049904,-500.0,9.995e-05,2]
[343626650,1732761049913,-500.0,9.995e-05,2]
[343626651,1732761049922,-500.0,9.995e-05,2]
[343626652,1732761049932,-648.5149013,9.995e-05,2]
[343626653,1732761049941,-500.0,9.995e-05,2]
[343626654,1732761049950,-500.0,9.995e-05,2]
[343626655,1732761049960,-500.0,9.995e-05,2]
[343626656,1732761049969,-555.52,9.995e-05,2]
[343626657,1732761049979,-555.52,9.995e-05,2]
[343626658,1732761049988,-500.0,9.995e-05,2]
[343626659,1732761049998,-635.52147454,9.995e-05,2]
[343626660,1732761050008,-500.0,9.995e-05,2]
[343626661,1732761050017,-500.53176571,9.995e-05,2]
[343626662,1732761050028,-500.0,9.995e-05,2]
[343626663,1732761050038,-500.0,9.995e-05,2]
[343626664,1732761050048,-646.13,9.995e-05,2]
[343626665,1732761050058,-500.0,9.995e-05,2]
[343626666,1732761050067,-625.69,9.995e-05,2]
[343626667,1732761050077,-500.0,9.995e-05,2]
[343626668,1732761050088,-500.0,9.995e-05,2]
[343626669,1732761050097,-586.31,9.995e-05,2]
[343626670,1732761050107,-500.0,9.995e-05,2]
[343626671,1732761050116,-545.88,9.995e-05,2]
[343626672,1732761050126,-500.0,9.995e-05,2]
[343626673,1732761050136,-1346.21,9.995e-05,2]
[343626674,1732761050146,-1346.21,9.995e-05,2]
[343626675,1732761050159,-500.0,9.995e-05,2]
[343626676,1732761050168,-301.74,9.995e-05,2]
[343626677,1732761050178,-494.16592829,9.995e-05,2]
[343626678,1732761050188,-500.0,9.995e-05,2]
[343626679,1732761050197,-500.0,9.995e-05,2]
[343626680,1732761050207,-500.0,9.995e-05,2]
[343626681,1732761050217,-269.33706135,9.995e-05,2]
[343626682,1732761050226,-500.0,9.995e-05,2]
[343626683,1732761050235,-500.0,9.995e-05,2]
[343626684,1732761050245,-511.96568205,9.995e-05,2]
[343626685,1732761050255,-500.0,9.995e-05,2]
[343626686,1732761050264,-527.46998056,9.995e-05,2]
[343626687,1732761050274,-351.02998367,9.995e-05,2]
[343626688,1732761050283,-325.40330674,9.995e-05,2]
[343626689,1732761050292,-500.0,9.995e-05,2]
[343626690,1732761050301,-500.0,9.995e-05,2]
[343626691,1732761050310,-500.0,9.995e-05,2]
[343626692,1732761050319,-501.82490174,9.995e-05,2]
[343626693,1732761050328,-500.0,9.995e-05,2]
[343626694,1732761050337,-1555.35,9.995e-05,2]
[343626695,1732761050347,-500.0,9.995e-05,2]
[343626696,1732761050356,-500.0,9.995e-05,2]
[343626697,1732761050366,-500.0,9.995e-05,2]
[343626698,1732761050375,-500.0,9.995e-05,2]
[343626699,1732761050384,-193.86,9.995e-05,2]
[343626700,1732761050394,-500.0,9.995e-05,2]
[343626701,1732761050404,-500.0,9.995e-05,2]
[343626702,1732761050414,-500.0,9.995e-05,2]
[343626703,1732761050423,-500.0,9.995e-05,2]
[343626704,1732761050433,-538.15327332,9.995e-05,2]
[343626705,1732761050442,-689.4,9.995e-05,2]
[343626706,1732761050456,-500.0,9.995e-05,2]
[343626707,1732761050467,-201.90642225,9.995e-05,2]
[343626708,1732761050477,-500.0,9.995e-05,2]
[343626709,1732761050488,-500.0,9.995e-05,2]
[343626710,1732761050497,-500.0,9.995e-05,2]
[343626711,1732761050507,-284.45421366,9.995e-05,2]
[343626712,1732761050517,-500.0,9.995e-05,2]
[343626713,1732761050530,-616.5272023,9.995e-05,2]
[343626714,1732761050541,-500.0,9.995e-05,2]
[343626715,1732761050550,-500.0,9.995e-05,2]
[343626716,1732761050559,-554.66993497,9.995e-05,2]
[343626717,1732761050568,-649.53898621,9.995e-05,2]
[343626718,1732761050577,-500.0,9.995e-05,2]
[343626719,1732761050586,-500.0,9.995e-05,2]
[343626720,1732761050595,-614.3417125,9.995e-05,2]
[343626721,1732761050605,-500.0,9.995e-05,2]
[343626722,1732761050614,-500.0,9.995e-05,2]
[343626723,1732761050623,-193.05764984,9.995e-05,2]
[343626724,1732761050632,-500.0,9.995e-05,2]
[343626725,1732761050642,-500.0,9.995e-05,2]
[343626726,1732761050654,-500.0,9.995e-05,2]
[343626727,1732761050664,-500.0,9.995e-05,2]
[343626728,1732761050674,-552.56912338,9.995e-05,2]
[343626729,1732761050683,-500.0,9.995e-05,2]
[343626730,1732761050693,-500.0,9.995e-05,2]
[343626731,1732761050702,-500.0,9.995e-05,2]
[343626732,1732761050712,-500.0,9.995e-05,2]
[343626733,1732761050722,-500.0,9.995e-05,2]
[343626734,1732761050732,-500.0,9.995e-05,2]
[343626735,1732761050741,-727.27,9.995e-05,2]
[343626736,1732761050751,-500.0,9.995e-05,2]
[343626737,1732761050761,-500.0,9.995e-05,2]
[343626738,1732761050770,-500.0,9.995e-05,2]
[343626739,1732761050780,-500.0,9.995e-05,2]
[343626740,1732761050789,-500.0,9.995e-05,2]
[343626741,1732761050798,-500.0,9.995e-05,2]
[343626742,1732761050807,-500.0,9.995e-05,2]
[343626743,1732761050817,-500.0,9.995e-05,2]
[343626744,1732761050826,-730.24,9.995e-05,2]
[343626745,1732761050835,-507.93365849,9.995e-05,2]
[343626746,1732761050845,-500.0,9.995e-05,2]
[343626747,1732761050854,-500.0,9.995e-05,2]
[343626748,1732761050863,-568.73,9.995e-05,2]
[343626749,1732761050872,-568.73,9.995e-05,2]
[343626750,1732761050882,-500.0,9.995e-05,2]
[343626751,1732761050892,-500.0,9.995e-05,2]
[343626752,1732761050901,-500.0,9.995e-05,2]
[343626753,1732761050912,-500.0,9.995e-05,2]
[343626754,1732761050922,-500.0,9.995e-05,2]
[343626755,1732761050931,-500.0,9.995e-05,2]
[343626756,1732761050940,-163.01073155,9.995e-05,2]
[343626757,1732761050950,-500.0,9.995e-05,2]
[343626758,1732761050960,-257.2835129,9.995e-05,2]
[343626759,1732761050969,-632.04241321,9.995e-05,2]
[343626760,1732761050979,-183.24092142,9.995e-05,2]
[343626761,1732761050988,-500.0,9.995e-05,2]
[343626762,1732761051000,-500.0,9.995e-05,2]
[343626763,1732761051009,-500.0,9.995e-05,2]
[343626764,1732761051019,-500.0,9.995e-05,2]
[343626765,1732761051029,-583.8053468,9.995e-05,2]
[343626766,1732761051038,-581.17943655,9.995e-05,2]
[343626767,1732761051049,-500.0,9.995e-05,2]
[343626768,1732761051058,-500.0,9.995e-05,2]
[343626769,1732761051067,-505.78587283,9.995e-05,2]
[343626770,1732761051077,-500.0,9.995e-05,2]
[343626771,1732761051086,-503.19,9.995e-05,2]
[343626772,1732761051095,-503.19,9.995e-05,2]
[343626773,1732761051105,-627.73747592,9.995e-05,2]
[343626774,1732761051114,-500.0,9.995e-05,2]
[343626775,1732761051124,-500.0,9.995e-05,2]
[343626776,1732761051134,-762.85,9.995e-05,2]
[343626777,1732761051143,-500.0,9.995e-05,2]
[343626778,1732761051154,-500.0,9.995e-05,2]
[343626779,1732761051164,-2817.45,9.995e-05,2]
[343626780,1732761051173,-638.21,9.995e-05,2]
[343626781,1732761051183,-500.0,9.995e-05,2]
[343626782,1732761051192,-500.0,9.995e-05,2]
[343626783,1732761051202,-500.0,9.995e-05,2]
[343626784,1732761051212,-508.84808762,9.995e-05,2]
[343626785,1732761051222,-500.0,9.995e-05,2]
[343626786,1732761051231,-500.0,9.995e-05,2]
[343626787,1732761051241,-500.0,9.995e-05,2]
[343626788,1732761051250,-500.0,9.995e-05,2]
[343626789,1732761051259,-506.97527566,9.995e-05,2]
[343626790,1732761051269,-3226.25,9.995e-05,2]
[343626791,1732761051279,-500.0,9.995e-05,2]
[343626792,1732761051289,-525.82837635,9.995e-05,2]
[343626793,1732761051298,-3226.25,9.995e-05,2]
[343626794,1732761051308,-516.28775637,9.995e-05,2]
[343626795,1732761051318,-500.0,9.995e-05,2]
[343626796,1732761051327,-500.0,9.995e-05,2]
[343626797,1732761051398,-935.73,9.995e-05,2]
[343626798,1732761051411,-329.0811099,9.995e-05,2]
[343626799,1732761051427,-534.45830531,9.995e-05,2]
[343626800,1732761051437,-500.0,9.995e-05,2]
[343626801,1732761051451,-500.0,9.995e-05,2]
[343626802,1732761051460,-500.0,9.995e-05,2]
[343626803,1732761051470,-546.21444262,9.995e-05,2]
[343626804,1732761051479,-500.0,9.995e-05,2]
[343626805,1732761051488,-500.0,9.995e-05,2]
[343626806,1732761051498,-745.03,9.995e-05,2]
[343626807,1732761051508,-905.93,9.995e-05,2]
[343626808,1732761051517,-905.93,9.995e-05,2]
[343626809,1732761051528,-758.17,9.995e-05,2]
[343626810,1732761051539,-500.0,9.995e-05,2]
[343626811,1732761051548,-500.0,9.995e-05,2]
[343626812,1732761051558,-517.55842726,9.995e-05,2]
[343626813,1732761051567,-500.0,9.995e-05,2]